fUSD/lending_fUSD_20240718
["ID","MTS","AMOUNT","RATE_DAILY","PERIOD"]
[332602455,1721337003145,150.0,0.00010486,2]
[332602456,1721337003166,157.09573105,0.00010486,2]
[332602457,1721337003187,150.0,0.00010486,2]
[332602458,1721337003208,150.0,0.00010486,2]
[332602459,1721337003229,150.0,0.00010486,2]
[332602460,1721337003253,12.68081649,0.00010486,2]
[332602461,1721337007909,150.0,0.00010486,2]
[332602462,1721337007931,141.0324454,0.00010486,2]
[332602463,1721337008578,8.9675546,0.0001271,2]
[332602464,1721337008600,150.0,0.0001271,2]
[332602465,1721337008622,145.87757828,0.0001271,2]
[332602466,1721337017102,4.12242172,0.00010486,2]
[332602467,1721337017124,150.0,0.00010486,2]
[332602468,1721337017146,4.58235953,0.00010486,2]
[332602469,1721337017241,145.41764047,0.00010486,2]
[332602470,1721337017264,67.40121292,0.00010486,2]
[332602471,1721337017805,82.59878708,0.00010486,2]
[332602472,1721337017826,137.07252421,0.00010486,2]
[332602473,1721337025537,150.0,0.00012976,2]
[332602474,1721337025558,150.0,0.00012976,2]
[332602475,1721337025582,150.0,0.00012976,2]
[332602476,1721337025611,656.997807,0.00012976,2]
[332602484,1721337032225,-250.0,0.00013067,2]
[332602485,1721337032234,-300.0,0.00013133,2]
[332602487,1721337032244,-1250.0,0.00013134,2]
[332602497,1721337032339,-1784.76542193,0.00013134,2]
[332602502,1721337032395,-17317.81782287,0.00013134,2]
[332602503,1721337032405,-155.0,0.00013134,2]
[332602504,1721337032416,-200.0,0.00013437,2]
[332602505,1721337032426,-623.40192032,0.0001349,2]
[332602508,1721337038299,-299.41661641,0.0001349,2]
[332602509,1721337038358,-800.16146327,0.0001349,2]
[332602510,1721337038368,-11492.0,0.000136,3]
[332602511,1721337038377,-500.0,0.00013711,2]
[332602512,1721337038387,-458.59,0.00013744,2]
[332602513,1721337038396,-162.14215495,0.0001378,2]
[332602514,1721337038405,-25407.33350607,0.0001379,2]
[332602515,1721337038414,-166.339282,0.0001379,2]
[332602516,1721337038423,-4468.62273745,0.00013798,2]
[332602517,1721337038433,-3568.48032519,0.00013799,2]
[332602518,1721337038442,-311.29215967,0.00013799,2]
[332602519,1721337038452,-1168.73763,0.0001386,2]
[332602520,1721337038461,-1435.48036598,0.00013869,2]
[332602521,1721337038471,-35407.1039975,0.0001387,2]
[332602522,1721337038480,-508.36,0.0001387,3]
[332602523,1721337038490,-305.0,0.00013879,2]
[332602524,1721337038500,-333.24679171,0.00013879,2]
[332602525,1721337038510,-79622.23518291,0.0001388,2]
[332602526,1721337038522,-678.46643896,0.0001388,2]
[332602527,1721337038539,-680.9102,0.0001388,2]
[332602530,1721337038912,-1015.57365664,0.0001388,2]
[332602531,1721337038924,-4048.55871221,0.0001388,2]
[332602532,1721337038951,-325674.2177339,0.0001388,2]
[332602533,1721337039076,-9324.97,0.0001388,2]
[332602534,1721337039087,-20231.15397264,0.0001388,2]
[332602535,1721337040309,-781.93320104,0.0001388,2]
[332602536,1721337040587,-2454.94273917,0.0001388,2]
[332602537,1721337040599,-1352.74328221,0.0001388,2]
[332602538,1721337040611,-1180.22303273,0.0001388,2]
[332602539,1721337040622,-2010.0,0.0001388,2]
[332602540,1721337040634,-26017.7649991,0.0001388,2]
[332602541,1721337040664,-1169.96392724,0.0001388,2]
[332602542,1721337040676,-60608.65516441,0.0001388,2]
[332602543,1721337040698,-930.46642587,0.0001388,2]
[332602544,1721337040717,-40598.05593484,0.0001388,2]
[332602545,1721337040736,-736.12941364,0.0001388,2]
[332602546,1721337040748,-3801.71840768,0.0001388,2]
[332602547,1721337042258,-9341.2980647,0.0001388,2]
[332602549,1721337042270,-466.51281727,0.0001388,2]
[332602551,1721337042282,-1594.4435325,0.0001388,2]
[332602606,1721337043465,-624.6135203,0.00013067,2]
[332602607,1721337043554,-318.3886727,0.00013067,2]
[332602608,1721337043564,-1587.53625186,0.0001388,2]
[332602609,1721337043577,-289.1722988,0.0001388,2]
[332602611,1721337043588,-3069.47915823,0.0001388,2]
[332602613,1721337043620,-757814.06349401,0.0001388,2]
[332602614,1721337043629,-5232.4873,0.000139,2]
[332602615,1721337043638,-17410.7595608,0.000139,2]
[332602616,1721337043648,-199.01748312,0.000139,2]
[332602617,1721337043658,-4292.12928364,0.000139,2]
[332602618,1721337043667,-729.47998104,0.000139,2]
[332602619,1721337043676,-200.11792725,0.0001393,2]
[332602620,1721337043685,-150.0,0.00013963,2]
[332602622,1721337043695,-196.91502287,0.00013996,2]
[332602623,1721337043704,-692.10779241,0.00013996,2]
[332602624,1721337043713,-692.10779241,0.00013996,2]
[332602625,1721337043723,-300.0,0.00013999,2]
[332602626,1721337043731,-490040.76938985,0.00014,2]
[332602627,1721337043743,-271.7109331,0.00014,2]
[332602628,1721337043754,-1709.20227209,0.00014,2]
[332602629,1721337043923,-1880.80683684,0.00014,2]
[332602636,1721337046999,-435.52629204,0.000138,2]
[332602637,1721337047009,-150.01,0.00013999,2]
[332602638,1721337047019,-1717.42732476,0.00014,2]
[332602639,1721337047443,-4269.74136565,0.00014,2]
[332602640,1721337047938,150.0,0.00010486,2]
[332602641,1721337047960,69.67131129,0.00010486,2]
[332602642,1721337061586,150.0,0.00012855,2]
[332602643,1721337061607,100.0,0.00012855,2]
[332602644,1721337108987,150.0,0.00012855,2]
[332602645,1721337109008,150.0,0.00012855,2]
[332602646,1721337109028,236.98413205,0.00012855,2]
[332602647,1721337109048,150.0,0.00012855,2]
[332602648,1721337109071,19665.59911275,0.00012855,2]
[332602649,1721337117833,150.0,0.00012855,2]
[332602650,1721337117854,45.99901512,0.00012855,2]
[332602652,1721337131530,150.0,0.00012931,2]
[332602653,1721337131551,16.49,0.00012931,2]
[332602654,1721337133811,150.0,0.00012855,2]
[332602655,1721337133831,5.0,0.00012855,2]
[332602656,1721337150913,150.0,0.00012855,2]
[332602657,1721337150934,8.6146599,0.00012855,2]
[332602659,1721337171029,150.0,0.00012855,2]
[332602660,1721337171051,150.0,0.00012855,2]
[332602661,1721337171072,150.0,0.00012855,2]
[332602662,1721337171095,150.0,0.00012855,2]
[332602663,1721337171116,150.0,0.00012855,2]
[332602664,1721337171140,149.19532507,0.00012855,2]
[332602665,1721337197015,150.0,0.00012855,2]
[332602666,1721337197036,150.0,0.00012855,2]
[332602667,1721337197057,160.61753378,0.00012855,2]
[332602668,1721337197077,150.0,0.00012855,2]
[332602669,1721337197102,9528.20775518,0.00012855,2]
[332602670,1721337199347,-150.0,0.00012855,2]
[332602671,1721337200511,-150.0,0.00012855,2]
[332602672,1721337201419,-150.0,0.00012855,2]
[332602673,1721337202431,-150.0,0.00012855,2]
[332602674,1721337203245,-150.0,0.00012855,2]
[332602675,1721337204120,-150.0,0.00012855,2]
[332602676,1721337205045,-150.0,0.00012855,2]
[332602677,1721337206034,-150.0,0.00012855,2]
[332602678,1721337206656,-150.0,0.00012855,2]
[332602679,1721337208568,-150.0,0.00012855,2]
[332602680,1721337209547,-150.0,0.00012855,2]
[332602681,1721337210601,-150.0,0.00012855,2]
[332602682,1721337211271,-150.0,0.00012855,2]
[332602683,1721337211313,320.0,0.00024664,120]
[332602684,1721337211738,-150.0,0.00012855,2]
[332602685,1721337212804,-150.0,0.00012855,2]
[332602686,1721337213631,-150.0,0.00012855,2]
[332602687,1721337214353,-150.0,0.00012855,2]
[332602688,1721337215136,-150.0,0.00012855,2]
[332602689,1721337215773,-150.0,0.00012855,2]
[332602690,1721337216369,-150.0,0.00012855,2]
[332602691,1721337216942,-150.0,0.00012855,2]
[332602692,1721337217549,-150.0,0.00012855,2]
[332602693,1721337218107,-150.0,0.00012855,2]
[332602696,1721337223637,-150.0,0.00012855,2]
[332602697,1721337224341,-150.0,0.00012855,2]
[332602698,1721337225470,-150.0,0.00012855,2]
[332602699,1721337226385,-150.0,0.00012855,2]
[332602700,1721337227486,-150.0,0.00012855,2]
[332602701,1721337228077,-150.0,0.00012855,2]
[332602702,1721337228760,-150.0,0.00012855,2]
[332602703,1721337229721,-150.0,0.00012855,2]
[332602707,1721337501532,150.0,0.00010865,2]
[332602708,1721337544698,150.0,0.00010865,2]
[332602709,1721337544721,150.0,0.00010865,2]
[332602710,1721337544742,8.70478125,0.00010865,2]
[332602711,1721337546428,-213.93123359,0.00012691,2]
[332602712,1721337547127,-150.0,0.00012691,2]
[332602713,1721337548077,-150.0,0.00012691,2]
[332602714,1721337548546,155.0,0.00010865,2]
[332602715,1721337548814,-150.0,0.00012691,2]
[332602716,1721337549680,-150.0,0.00012691,2]
[332602717,1721337550249,-291.0324454,0.00012691,2]
[332602718,1721337550743,-135.94951201,0.00012691,2]
[332602719,1721337555982,300.0,0.00010865,2]
[332602720,1721337560343,150.0,0.00010865,2]
[332602721,1721337560364,150.0,0.00010865,2]
[332602722,1721337560811,150.0,0.00010865,2]
[332602723,1721337560833,67.40121292,0.00010865,2]
[332602724,1721337562307,-213.52493028,0.00012855,2]
[332602725,1721337563041,-150.0,0.00012855,2]
[332602726,1721337563975,-5.0,0.00012855,2]
[332602727,1721337563996,-145.0,0.00012855,2]
[332602728,1721337564951,-150.0,0.00012855,2]
[332602729,1721337565056,150.0,0.00010865,2]
[332602730,1721337565078,150.0,0.00010865,2]
[332602731,1721337565101,150.0,0.00010865,2]
[332602732,1721337565123,150.0,0.00010865,2]
[332602733,1721337565145,19752.5832448,0.00010865,2]
[332602734,1721337646938,300.12954062,0.00010865,2]
[332602735,1721337649799,300.12954062,0.00010865,2]
[332602736,1721337650823,150.0,0.00010865,2]
[332602737,1721337650845,5.0,0.00010865,2]
[332602738,1721337651496,-199.54564492,0.00011526,2]
[332602739,1721337655012,150.0,0.00010865,2]
[332602740,1721337655033,150.0,0.00010865,2]
[332602741,1721337655054,150.0,0.00010865,2]
[332602742,1721337655076,150.0,0.00010865,2]
[332602743,1721337655097,150.0,0.00010865,2]
[332602744,1721337655119,19602.5832448,0.00010865,2]
[332602746,1721337685008,150.0,0.00010865,2]
[332602747,1721337685031,150.0,0.00010865,2]
[332602748,1721337685052,150.0,0.00010865,2]
[332602749,1721337685074,150.0,0.00010865,2]
[332602750,1721337685095,150.0,0.00010865,2]
[332602751,1721337685117,150.0,0.00010865,2]
[332602752,1721337685138,150.0,0.00010865,2]
[332602753,1721337685160,150.0,0.00010865,2]
[332602754,1721337685182,150.0,0.00010865,2]
[332602755,1721337685203,150.0,0.00010865,2]
[332602756,1721337685224,150.0,0.00010865,2]
[332602757,1721337685247,150.0,0.00010865,2]
[332602758,1721337685268,150.0,0.00010865,2]
[332602759,1721337685295,150.0,0.00010865,2]
[332602760,1721337685317,150.0,0.00010865,2]
[332602761,1721337685340,18102.5832448,0.00010865,2]
[332602767,1721337754840,155.0,0.00010865,2]
[332602768,1721337760092,1357.09573105,0.00010865,2]
[332602769,1721337764917,432.0648908,0.00010865,2]
[332602771,1721337772013,466.14011481,0.00010865,2]
[332602784,1721337840981,166.49,0.00010089,2]
[332602785,1721337849836,155.0,0.00010865,2]
[332602793,1721337918675,150.0,9e-05,2]
[332602794,1721337918698,150.0,9e-05,2]
[332602795,1721337918724,258.82358749,9e-05,2]
[332602796,1721337918752,4989.47905777,9e-05,2]
[332602798,1721337933347,155.0,0.00010865,2]
[332602799,1721337935233,150.0,0.00011,2]
[332602800,1721337955403,3200.598078,6.94e-05,2]
[332602802,1721337997446,19655.44717849,8.412e-05,2]
[332602805,1721338010580,150.0,0.00011268,2]
[332602806,1721338031352,155.0,6.94e-05,2]
[332602807,1721338040430,205.0,9.8e-05,2]
[332602810,1721338088844,150.0,0.00011212,2]
[332602813,1721338119363,155.0,9.8e-05,2]
[332602816,1721338131329,504.1,0.00010475,2]
[332602828,1721338193296,276.89,9.895e-05,2]
[332602832,1721338219365,246.82474309,0.00010475,2]
[332602834,1721338231615,-2835.88880152,0.00011325,2]
[332602835,1721338231625,-1782.95873482,0.00011425,2]
[332602836,1721338231634,-5606.142,0.00011426,2]
[332602837,1721338231643,-3007.09773346,0.0001152,2]
[332602838,1721338231653,-155.48552727,0.00011878,2]
[332602839,1721338231662,-783.11,0.00012382,2]
[332602840,1721338231671,-12116.17746766,0.00012382,2]
[332602841,1721338231680,-800.16,0.00012396,2]
[332602842,1721338231690,-500.0,0.00012412,2]
[332602843,1721338231699,-3692.99,0.00012485,2]
[332602844,1721338231708,-306.02874822,0.00012509,2]
[332602845,1721338231717,-684.59864912,0.0001251,2]
[332602846,1721338231727,-158.64569138,0.00012654,2]
[332602847,1721338231737,-162.14215495,0.00012655,2]
[332602848,1721338231746,-499.99,0.00012655,2]
[332602849,1721338231756,-250.0,0.00012668,2]
[332602850,1721338231765,-202.68124914,0.00012697,2]
[332602851,1721338231775,-19655.44717849,0.00012697,2]
[332602852,1721338231784,-523.93908812,0.00012738,2]
[332602853,1721338231794,-155.85762833,0.00012738,2]
[332602854,1721338231803,-504.1,0.00012739,2]
[332602855,1721338231815,-256.35116785,0.00012855,2]
[332602856,1721338231825,-331.63513846,0.00012855,2]
[332602857,1721338231834,-235.38273328,0.00012856,2]
[332602858,1721338231845,-172.12,0.00012857,2]
[332602859,1721338231854,-1622.35,0.00012857,2]
[332602860,1721338231863,-354.72,0.00012861,2]
[332602861,1721338231873,-26328.36027452,0.00013169,2]
[332602862,1721338231882,-155.0,0.00013483,2]
[332602863,1721338231891,-155.0,0.00013483,2]
[332602864,1721338231900,-1072.7301067,0.00013489,2]
[332602865,1721338231913,-2835.98042277,0.00013489,2]
[332602866,1721338231922,-570.66949851,0.00013652,2]
[332602867,1721338231931,-529.6577539,0.00013654,2]
[332602868,1721338231940,-529.6577539,0.00013654,2]
[332602869,1721338231951,-168.62,0.00013699,2]
[332602870,1721338231960,-244.99,0.00013699,2]
[332602872,1721338231971,-250.0,0.00013699,2]
[332602873,1721338231983,-150.0,0.00013744,2]
[332602874,1721338231991,-263.7800964,0.00013764,2]
[332602875,1721338232001,-150.0,0.00013765,2]
[332602876,1721338232010,-354.82287898,0.00013778,2]
[332602877,1721338232020,-2650.1,0.0001378,2]
[332602878,1721338232030,-166.873,0.0001378,2]
[332602879,1721338232039,-18829.44001981,0.00013789,2]
[332602880,1721338232048,-381.08550557,0.0001379,2]
[332602881,1721338232057,-701.1564,0.0001379,2]
[332602882,1721338232066,-2550.0931,0.0001379,2]
[332602883,1721338232076,-4291.7394,0.0001379,2]
[332602884,1721338232085,-3568.48032519,0.00013799,2]
[332602885,1721338232095,-438.2805,0.000138,2]
[332602886,1721338232104,-1252.7833,0.000138,2]
[332602887,1721338232113,-2841.727,0.000138,2]
[332602888,1721338232123,-348.4254,0.000138,2]
[332602889,1721338232132,-46173.0377,0.000138,2]
[332602890,1721338232142,-150.0,0.00013814,2]
[332602891,1721338232151,-4468.62273745,0.00013859,2]
[332602892,1721338232160,-297.0,0.0001386,2]
[332602893,1721338232169,-973.94803,0.0001386,2]
[332602894,1721338232178,-218.16420677,0.00013869,2]
[332602895,1721338232187,-709.87,0.0001387,3]
[332602896,1721338232196,-79622.23518291,0.0001388,2]
[332602897,1721338232206,-150.0,0.00013884,2]
[332602898,1721338232215,-311.29215967,0.00013889,2]
[332602899,1721338232224,-305.0,0.00013889,2]
[332602900,1721338232233,-40000.00000051,0.0001389,2]
[332602901,1721338232243,-11567.5372574,0.0001389,2]
[332602902,1721338232253,-45.41121814,0.000139,2]
[332602903,1721338232287,-632.10996561,0.000139,2]
[332602904,1721338232299,-4352.02576952,0.000139,2]
[332602909,1721338237468,-649.7491,0.00011325,2]
[332602910,1721338237587,-7163.49472737,0.00011325,2]
[332602911,1721338237596,-304.84513288,0.00012697,2]
[332602912,1721338237606,-210.91879564,0.00013651,2]
[332602913,1721338237616,-54970.45304673,0.000139,2]
[332602914,1721338237625,-17269.4566,0.000139,2]
[332602915,1721338237635,-162.30891768,0.000139,2]
[332602916,1721338237644,-231.58011634,0.000139,2]
[332602917,1721338237654,-166.339282,0.000139,2]
[332602918,1721338237665,-2861.41952242,0.000139,2]
[332602919,1721338237675,-199.01748311,0.000139,2]
[332602920,1721338237684,-150.0,0.00013917,2]
[332602921,1721338237694,-783.11,0.00013929,2]
[332602922,1721338237704,-150.0,0.00013971,2]
[332602923,1721338237714,-1435.48036598,0.00013979,2]
[332602924,1721338237724,-150.0,0.0001398,2]
[332602925,1721338237733,-20243.1902005,0.0001398,2]
[332602926,1721338237743,-1445.94215718,0.00013989,2]
[332602927,1721338237753,-159.9452446,0.00013989,2]
[332602928,1721338237762,-4337.82647154,0.0001399,2]
[332602929,1721338237772,-647.71813835,0.00013994,2]
[332602930,1721338237781,-300.0,0.00013995,2]
[332602931,1721338237791,-294.23496162,0.00013996,2]
[332602933,1721338237801,-265.95776748,0.00013999,2]
[332602935,1721338237810,-150.01,0.00013999,2]
[332602936,1721338237819,-5937.4410809,0.00013999,2]
[332602937,1721338237828,-46124.43558438,0.00014,2]
[332602938,1721338237840,-974.37,0.00014,2]
[332602940,1721338238984,-298.93586434,0.00014,2]
[332602941,1721338239020,-22709.066,0.00014,2]
[332602982,1721338239993,-156.97678549,0.00013989,2]
[332602983,1721338240004,-660174.13640978,0.00014,2]
[332602984,1721338240027,-767.99104368,0.00014,2]
[332602994,1721338240167,-1468.96651,0.00014,2]
[332602995,1721338240179,-1729.84999999,0.00014,2]
[332602996,1721338240190,-684.575,0.00014,2]
[332603001,1721338242475,-153.46784774,0.00013999,2]
[332603003,1721338242484,-2621.39806729,0.00013999,2]
[332603004,1721338242494,-40846.83433269,0.00014,2]
[332603006,1721338242506,-350701.38156132,0.00014,2]
[332603007,1721338242517,-839.10109103,0.00014,2]
[332603008,1721338242528,-427.18428536,0.00014,2]
[332603009,1721338242540,-537.88,0.00014,2]
[332603010,1721338242551,-768.44720034,0.00014,2]
[332603011,1721338242580,-21982.45782378,0.00014,2]
[332603012,1721338242592,-5967.57370409,0.00014,2]
[332603013,1721338242605,-1570.55517767,0.00014,2]
[332603014,1721338242616,-7091.87739909,0.00014,2]
[332603015,1721338242632,-748.63230573,0.00014,2]
[332603016,1721338242643,-480.67443,0.00014,2]
[332603017,1721338242655,-9640.10867753,0.00014,2]
[332603018,1721338242688,-6459.35253181,0.00014,2]
[332603019,1721338242699,-286.93626806,0.00014,2]
[332603020,1721338242767,-16728.14076375,0.00014,2]
[332603021,1721338242778,-3577.81384428,0.00014,2]
[332603022,1721338242789,-931.13278959,0.00014,2]
[332603023,1721338242800,-831.48450349,0.00014,2]
[332603024,1721338242811,-83646.563,0.00014,2]
[332603032,1721338243624,-650.36277005,0.00014,2]
[332603033,1721338243636,-341.65759013,0.00014,2]
[332603034,1721338243675,-1255.06367634,0.00014,2]
[332603035,1721338243726,-715.36994382,0.00014,2]
[332603036,1721338243759,-1599.08934919,0.00014,2]
[332603037,1721338243771,-873.04153788,0.00014,2]
[332603038,1721338243782,-443.07349567,0.00014,2]
[332603039,1721338243799,-180204.26649294,0.00014,2]
[332603040,1721338245511,-11053.76194839,0.00014,2]
[332603041,1721338245523,-11823.59982305,0.00014,2]
[332603042,1721338245535,-1671.17631581,0.00014,2]
[332603043,1721338245547,-1740.74654837,0.00014,2]
[332603044,1721338245559,-553.56974129,0.00014,2]
[332603045,1721338245570,-2353.21410219,0.00014,2]
[332603046,1721338245581,-1000.54103258,0.00014,2]
[332603047,1721338245593,-30861.97877135,0.00014,2]
[332603048,1721338245604,-3693.93006249,0.00014,2]
[332603049,1721338245617,-458.27649239,0.00014,2]
[332603050,1721338245629,-4281.62023915,0.00014,2]
[332603051,1721338245660,-1533.5471234,0.00014,2]
[332603052,1721338245672,-1015.91279629,0.00014,2]
[332603053,1721338245683,-27799.89231496,0.00014,2]
[332603054,1721338245694,-3885.10398628,0.00014,2]
[332603055,1721338245705,-430.09096335,0.00014,2]
[332603056,1721338245717,-61739.96424973,0.00014,2]
[332603057,1721338245728,-473.62789852,0.00014,2]
[332603058,1721338245740,-1568.3092,0.00014,2]
[332603059,1721338245752,-7858.78588056,0.00014,2]
[332603060,1721338245767,-596.79156854,0.00014,2]
[332603061,1721338245783,-2563.31968009,0.00014,2]
[332603062,1721338245795,-585.79333653,0.00014,2]
[332603063,1721338245810,-430.18684934,0.00014,2]
[332603064,1721338245853,-6378.68035242,0.00014,2]
[332603065,1721338245864,-12571.36622906,0.00014,2]
[332603066,1721338245876,-743.62877208,0.00014,2]
[332603067,1721338245888,-15461.51814751,0.00014,2]
[332603068,1721338245900,-1862.13435004,0.00014,2]
[332603069,1721338245916,-5143.26,0.00014,2]
[332603070,1721338245961,-10203.53371529,0.00014,2]
[332603071,1721338246008,-346.76974357,0.00014,2]
[332603072,1721338246025,-506.28464956,0.00014,2]
[332603073,1721338246037,-2439.94300744,0.00014,2]
[332603074,1721338246049,-4349.09017876,0.00014,2]
[332603075,1721338246068,-956.17199593,0.00014,2]
[332603076,1721338246151,-3222.38164255,0.00014,2]
[332603077,1721338248929,-150.0,0.00012697,2]
[332603087,1721338325016,155.0,0.00016969,60]
[332603089,1721338589949,156.59,0.00018849,30]
[332603091,1721338671882,150.0,0.00010959,2]
[332603092,1721338671903,197.36041834,0.00010959,2]
[332603093,1721338671925,324.35958166,0.00010959,2]
[332603094,1721338673362,-235.785025,0.00011322,2]
[332603095,1721338673895,-17.90968468,0.00011322,2]
[332603096,1721338673916,-132.09031532,0.00011322,2]
[332603097,1721338674523,-150.0,0.00011322,2]
[332603098,1721338675529,-150.0,0.00011322,2]
[332603099,1721338676119,-150.0,0.00011322,2]
[332603100,1721338677736,-17.36276575,0.00011322,2]
[332603101,1721338677758,-178.63624937,0.00011323,2]
[332603102,1721338680761,-150.0,0.00011323,2]
[332603103,1721338681485,-1.36375063,0.00011323,2]
[332603104,1721338681507,-148.63624937,0.00012392,2]
[332603105,1721338682045,-158.6146599,0.00012392,2]
[332603106,1721338683965,-150.0,0.00012392,2]
[332603107,1721338684525,-42.74909073,0.00012392,2]
[332603108,1721338684547,-107.25090927,0.00012541,2]
[332603109,1721338685369,-150.0,0.00012541,2]
[332603110,1721338686069,-150.0,0.00012541,2]
[332603111,1721338686692,-160.61753378,0.00012541,2]
[332603112,1721338687298,-150.0,0.00012541,2]
[332603113,1721338688078,-150.0,0.00012541,2]
[332603114,1721338688639,-150.0,0.00012541,2]
[332603115,1721338689474,-150.0,0.00012541,2]
[332603116,1721338689934,-150.0,0.00012541,2]
[332603117,1721338690428,-150.0,0.00012541,2]
[332603118,1721338691798,-150.0,0.00012541,2]
[332603119,1721338692565,-150.0,0.00012541,2]
[332603120,1721338693073,-150.0,0.00012541,2]
[332603121,1721338693608,-150.0,0.00012541,2]
[332603122,1721338694158,-150.0,0.00012541,2]
[332603123,1721338695053,-150.0,0.00012541,2]
[332603124,1721338695818,-150.0,0.00012541,2]
[332603125,1721338696362,-150.0,0.00012541,2]
[332603126,1721338697128,-150.0,0.00012541,2]
[332603127,1721338697705,-150.0,0.00012541,2]
[332603128,1721338698260,-150.0,0.00012541,2]
[332603129,1721338699085,-150.0,0.00012541,2]
[332603130,1721338699928,-150.0,0.00012541,2]
[332603131,1721338700673,-150.0,0.00012541,2]
[332603132,1721338701248,-150.0,0.00012541,2]
[332603133,1721338702682,-150.0,0.00012541,2]
[332603134,1721338703463,-150.0,0.00012541,2]
[332603135,1721338703997,-150.0,0.00012541,2]
[332603136,1721338705271,-150.0,0.00012541,2]
[332603137,1721338706179,-150.0,0.00012541,2]
[332603138,1721338706828,-150.0,0.00012541,2]
[332603139,1721338707478,-150.0,0.00012541,2]
[332603140,1721338708016,-150.0,0.00012541,2]
[332603141,1721338708924,-150.0,0.00012392,2]
[332603142,1721338709602,-5.0,0.00012392,2]
[332603143,1721338709627,-145.0,0.00012541,2]
[332603144,1721338710405,-150.0,0.00012541,2]
[332603145,1721338711468,-150.0,0.00012541,2]
[332603146,1721338712052,-150.0,0.00012541,2]
[332603147,1721338712996,-213.52493028,0.00012541,2]
[332603148,1721338713849,-150.0,0.00012541,2]
[332603151,1721338819844,150.0,9.925e-05,2]
[332603152,1721338819866,150.0,9.925e-05,2]
[332603153,1721338819887,150.0,9.925e-05,2]
[332603154,1721338819909,27.29,9.925e-05,2]
[332603155,1721338821573,-181.64123359,0.00011851,2]
[332603156,1721338822159,-150.0,0.00011851,2]
[332603157,1721338822992,-150.0,0.00011851,2]
[332603158,1721338823954,-291.0324454,0.00011851,2]
[332603159,1721338824886,-150.0,0.00011851,2]
[332603163,1721338971636,150.0,9.569e-05,2]
[332603164,1721338971656,16.49,9.569e-05,2]
[332603166,1721339036259,133.51,9.569e-05,2]
[332603167,1721339036285,616.49,9.569e-05,2]
[332603170,1721339045921,155.0,9.569e-05,2]
[332603171,1721339046995,30.49515693,9.569e-05,2]
[332603172,1721339047018,128.11950297,9.569e-05,2]
[332603173,1721339048926,195.99901512,9.569e-05,2]
[332603174,1721339051878,295.0,9.569e-05,2]
[332603175,1721339055589,150.0,9.569e-05,2]
[332603176,1721339055612,2296.6928429,9.569e-05,2]
[332603177,1721339055641,13714.43375321,9.569e-05,2]
[332603180,1721339134932,150.0,9.569e-05,2]
[332603181,1721339134954,5.0,9.569e-05,2]
[332603182,1721339221957,219.67131129,9.569e-05,2]
[332603199,1721339359837,453.42,9.715e-05,2]
[332603209,1721339431696,-1192.8949193,0.00011207,2]
[332603210,1721339431800,-48.0182717,0.00011207,2]
[332603211,1721339431810,-202.41054397,0.00011262,2]
[332603212,1721339431820,-155.4020911,0.00011262,2]
[332603213,1721339431829,-890.40343046,0.00011263,2]
[332603214,1721339431839,-155.66736473,0.00011324,2]
[332603215,1721339431848,-946.5561817,0.00011324,2]
[332603216,1721339431858,-28568.82490716,0.00011324,2]
[332603217,1721339431868,-520.01170534,0.00011525,2]
[332603218,1721339431878,-293.03052447,0.00011525,2]